bitfinex/quotes_SOLUSD_20250318
["timestamp","ask_amount","ask_price","bid_price","bid_amount"]
[1742279900467,22.70487041,124.35,124.34,0.063]
[1742279901452,30.74667041,124.35,124.34,0.063]
[1742279901866,22.70487041,124.35,124.34,0.063]
[1742279902262,30.74667041,124.35,124.34,0.063]
[1742279902461,22.70487041,124.35,124.34,0.063]
[1742279902872,15.0201,124.38,124.34,0.063]
[1742279903077,8.0401,124.38,124.34,0.063]
[1742279903260,22.70487041,124.36,124.34,0.063]
[1742279903460,22.70487041,124.37,124.34,0.063]
[1742279903666,22.70487041,124.36,124.34,0.063]
[1742279904873,8.0701,124.38,124.34,0.063]
[1742279905071,0.03,124.38,124.35,6.98]
[1742279906189,22.73487041,124.38,124.35,6.98]
[1742279906562,22.73487041,124.38,124.35,15.0213]
[1742279908481,0.03,124.38,124.35,15.0213]
[1742279908782,22.73487041,124.38,124.35,15.0213]
[1742279908967,42.73487041,124.38,124.35,15.0213]
[1742279909282,22.73487041,124.38,124.35,15.0213]
[1742279909469,0.03,124.38,124.35,15.0213]
[1742279910772,22.73487041,124.38,124.35,15.0213]
[1742279913780,0.03,124.38,124.35,15.0213]
[1742279915887,22.73487041,124.38,124.35,15.0213]
[1742279916192,22.70487041,124.36,124.34,0.063]
[1742279916366,22.70487041,124.35,124.34,0.063]
[1742279918266,8.0418,124.35,124.34,0.063]
[1742279918569,30.74667041,124.35,124.34,0.063]
[1742279922668,30.74637041,124.36,124.34,0.063]
[1742279923283,22.70487041,124.35,124.34,0.063]
[1742279924391,81.8,124.37,124.34,0.063]
[1742279924392,104.50487041,124.37,124.34,0.063]
[1742279925300,22.70487041,124.36,124.34,0.063]
[1742279925479,22.70487041,124.37,124.34,0.063]
[1742279925793,8.07,124.38,124.34,0.063]
[1742279926000,22.70487041,124.36,124.34,0.063]
[1742279927302,8.07,124.38,124.34,0.063]
[1742279927594,22.70487041,124.36,124.34,0.063]
[1742279927968,22.70487041,124.35,124.34,0.063]
[1742279928373,30.77487041,124.38,124.34,0.063]
[1742279928709,22.70487041,124.35,124.34,0.063]
[1742279929075,14.56512644,124.35,124.34,0.063]
[1742279929377,22.60692644,124.35,124.34,0.063]
[1742279929900,8.0418,124.35,124.34,0.063]
[1742279930071,22.60692644,124.35,124.34,0.063]
[1742279934594,20.0,124.35,124.34,0.063]
[1742279935001,34.56512644,124.35,124.34,0.063]
[1742279936481,14.56512644,124.36,124.34,0.063]
[1742279938104,8.0405,124.37,124.34,0.063]
[1742279938306,14.56512644,124.36,124.34,0.063]
[1742279938887,0.03,124.38,124.34,0.063]
[1742279939206,14.59512644,124.38,124.34,0.063]
[1742279940485,0.03,124.38,124.35,1.5701]
[1742279940707,0.03,124.38,124.36,8.0411]
[1742279941288,0.03,124.38,124.35,9.6116]
[1742279941604,14.59512644,124.38,124.35,9.6116]
[1742279943685,0.03,124.38,124.35,9.6116]
[1742279944092,0.03,124.38,124.36,18.64964886]
[1742279945504,0.03,124.38,124.36,26.69024886]
[1742279951187,14.59512644,124.38,124.35,1.5701]
[1742279951692,14.56512644,124.37,124.34,25.15444886]
[1742279951892,14.56512644,124.36,124.34,0.063]
[1742279952083,14.56512644,124.35,124.34,0.063]
[1742279953708,14.56512644,124.36,124.34,0.063]
[1742279956210,0.03,124.38,124.34,0.063]
[1742279956396,0.03,124.38,124.35,18.64964886]
[1742279956916,0.03,124.38,124.36,8.0411]
[1742279957416,0.03,124.38,124.35,26.69114886]
[1742279958002,0.03,124.38,124.37,18.64964886]
[1742279959006,0.03,124.38,124.37,26.69014886]
[1742279962993,0.03,124.38,124.37,43.18969844]
[1742279963194,0.03,124.38,124.37,43.47402158]
[1742279965012,0.03,124.38,124.37,43.18969844]
[1742279965328,0.03,124.38,124.37,28.34024886]
[1742279965623,0.03,124.38,124.37,42.9053753]
[1742279966827,0.03,124.38,124.37,43.18969844]
[1742279967425,0.03,124.38,124.37,28.34024886]
[1742279967828,0.03,124.38,124.37,42.9053753]
[1742279968002,0.03,124.38,124.37,20.29974886]
[1742279968627,0.03,124.38,124.37,28.34024886]
[1742279968824,0.03,124.38,124.37,20.29974886]
[1742279969327,0.03,124.38,124.37,18.64964886]
[1742279969523,0.03,124.38,124.36,7.023]
[1742279970201,0.03,124.38,124.37,18.64964886]
[1742279971131,0.03,124.38,124.37,26.69014886]
[1742279972024,0.03,124.38,124.36,15.0639]
[1742279972217,0.03,124.38,124.37,18.64964886]
[1742279973313,0.03,124.38,124.37,41.53959844]
[1742279977358,0.03,124.38,124.37,353.53959844]
[1742279978020,0.03,124.38,124.37,353.60259844]
[1742279980648,0.03,124.38,124.37,41.60259844]
[1742279982044,0.03,124.38,124.37,41.3182753]
[1742279982741,0.03,124.38,124.37,41.60259844]
[1742279983443,0.03,124.38,124.37,26.75314886]
[1742279984354,0.03,124.38,124.37,0.063]
[1742279989051,14.59512644,124.38,124.37,0.063]
[1742279989755,22.63492644,124.38,124.37,0.063]
[1742279990534,14.59512644,124.38,124.37,0.063]
[1742279991061,22.63492644,124.38,124.37,0.063]
[1742279994850,14.59512644,124.38,124.37,0.063]
[1742279995259,22.63492644,124.38,124.37,0.063]
[1742279995761,0.03,124.38,124.37,0.063]
[1742279997942,0.03,124.38,124.37,18.71264886]
[1742279998136,0.03,124.38,124.37,33.2777753]
[1742279999138,0.03,124.38,124.37,41.3182753]
[1742279999647,0.03,124.38,124.37,41.60259844]
[1742280001442,0.03,124.38,124.37,41.3182753]
[1742280004565,0.03,124.38,124.37,41.60259844]
[1742280005760,0.03,124.38,124.37,27.037472]
[1742280006066,0.03,124.38,124.37,41.60259844]
[1742280007484,0.03,124.38,124.37,41.88692158]
[1742280008470,0.03,124.38,124.37,27.32179514]
[1742280008668,0.03,124.38,124.37,41.88692158]
[1742280010269,0.03,124.38,124.37,41.60259844]
[1742280011279,0.03,124.38,124.37,353.60259844]
[1742280012081,0.03,124.38,124.37,27.037472]
[1742280012376,0.03,124.38,124.37,41.60259844]
[1742280012757,0.03,124.38,124.37,43.19875053]
[1742280013166,0.03,124.38,124.37,43.48307367]
[1742280014178,0.03,124.38,124.37,181.58307367]
[1742280015078,0.03,124.38,124.37,156.81264886]
[1742280015295,0.03,124.38,124.37,18.71264886]
[1742280015582,0.03,124.38,124.37,0.063]
[1742280015783,16.19127853,124.38,124.37,0.063]
[1742280016907,0.03,124.38,124.37,0.063]
[1742280022664,16.20196404,124.38,124.37,0.063]
[1742280022865,24.24176404,124.38,124.37,0.063]
[1742280023962,0.03,124.38,124.37,0.063]
[1742280024157,8.0698,124.38,124.37,0.063]
[1742280024412,24.24176404,124.38,124.37,0.063]
[1742280024566,88.9296202,124.38,124.37,0.063]
[1742280024889,20.0,124.35,124.34,0.063]
[1742280025070,50.05466404,124.35,124.33,0.063]
[1742280025273,16.17196404,124.32,124.31,0.063]
[1742280025477,32.34392808,124.32,124.31,0.063]
[1742280025686,32.62825122,124.32,124.31,0.063]
[1742280025860,18.37981032,124.32,124.31,0.063]
[1742280026060,17.81116404,124.32,124.31,0.063]
[1742280026370,26.3427,124.35,124.31,0.063]
[1742280026564,20.0,124.35,124.31,0.063]
[1742280026764,36.17196404,124.35,124.31,0.063]
[1742280026983,16.17196404,124.34,124.31,0.063]
[1742280027173,25.2962198,124.32,124.31,0.063]
[1742280027377,25.2962198,124.33,124.31,0.063]
[1742280027771,20.0,124.35,124.31,0.063]
[1742280027977,25.2962198,124.33,124.31,0.063]
[1742280028186,20.0,124.35,124.31,0.063]
[1742280028597,25.2962198,124.33,124.31,0.063]
[1742280029365,25.2962198,124.32,124.31,0.063]
[1742280029781,20.0,124.35,124.31,0.063]
[1742280029975,25.2962198,124.32,124.31,0.063]
[1742280030365,57.0671396,124.32,124.31,0.063]
[1742280030587,57.63578588,124.32,124.31,0.063]
[1742280032065,31.7709198,124.32,124.31,0.063]
[1742280032270,57.63578588,124.32,124.31,0.063]
[1742280032575,25.2962198,124.32,124.31,0.063]
[1742280032779,20.0,124.32,124.31,0.063]
[1742280033080,45.2962198,124.32,124.31,0.063]
[1742280033966,45.86486608,124.32,124.31,0.063]
[1742280034687,20.0,124.32,124.31,0.063]
[1742280036592,25.2962198,124.34,124.31,0.063]
[1742280037991,0.063,124.33,124.31,0.063]
[1742280038784,20.063,124.33,124.31,0.063]
[1742280038989,45.3592198,124.33,124.31,0.063]
[1742280039197,25.2962198,124.32,124.31,0.063]
[1742280039503,45.3592198,124.33,124.31,0.063]
[1742280039680,25.2962198,124.32,124.31,0.063]
[1742280040099,20.063,124.33,124.31,0.063]
[1742280040305,45.3592198,124.33,124.31,0.063]
[1742280040904,20.063,124.33,124.31,0.063]
[1742280041204,45.3592198,124.33,124.31,0.063]
[1742280041699,20.063,124.33,124.31,0.063]
[1742280045096,0.063,124.33,124.31,0.063]
[1742280045481,25.2962198,124.32,124.31,0.063]
[1742280047506,51.16108588,124.32,124.31,0.063]
[1742280047696,52.77388588,124.32,124.31,0.063]
[1742280048007,27.47766608,124.32,124.31,0.063]
[1742280049102,52.77388588,124.32,124.31,0.063]
[1742280050399,134.57388588,124.32,124.31,0.063]
[1742280055009,25.58054294,124.32,124.31,0.063]
[1742280055503,25.86486608,124.32,124.31,0.063]
[1742280055710,25.58054294,124.32,124.31,0.063]
[1742280055882,0.063,124.33,124.31,0.063]
[1742280056087,25.2962198,124.32,124.31,0.063]
[1742280058416,25.3592198,124.33,124.31,0.063]
[1742280058611,25.2962198,124.32,124.31,0.063]
[1742280061727,0.063,124.33,124.31,18.71264886]
[1742280061894,0.063,124.33,124.31,44.00886866]
[1742280062293,0.063,124.33,124.32,43.94586866]
[1742280062797,0.063,124.33,124.32,53.62606866]
[1742280063004,0.063,124.33,124.32,45.58236866]
[1742280063196,0.063,124.33,124.32,53.62606866]
[1742280063395,0.063,124.33,124.32,28.32984886]
[1742280063608,0.063,124.33,124.32,53.62606866]
[1742280064010,0.063,124.33,124.32,20.28614886]
[1742280064412,0.063,124.33,124.32,28.32984886]
[1742280064794,0.063,124.33,124.32,20.28614886]
[1742280065799,0.063,124.33,124.32,28.32984886]
[1742280066002,0.063,124.33,124.32,20.28614886]
[1742280066198,25.3592198,124.33,124.31,0.063]
[1742280067404,0.063,124.33,124.31,0.063]
[1742280067590,0.063,124.33,124.31,25.3592198]
[1742280068498,0.063,124.33,124.31,0.063]
[1742280069621,25.3592198,124.33,124.31,0.063]
[1742280070494,0.063,124.33,124.31,0.063]
[1742280071219,25.3592198,124.33,124.31,0.063]
[1742280071926,0.063,124.33,124.31,0.063]
[1742280075236,0.063,124.33,124.32,26.69334886]
[1742280076226,0.063,124.33,124.32,59.06956866]
[1742280076531,0.063,124.33,124.32,67.01406866]
[1742280077905,0.063,124.33,124.32,41.71784886]
[1742280078101,0.063,124.33,124.32,67.58271494]
[1742280078833,0.0001,124.33,124.32,205.68271494]
[1742280079034,0.03,124.38,124.34,18.64964886]
[1742280079216,0.03,124.38,124.36,26.69044886]
[1742280079940,0.03,124.38,124.33,20.53308471]
[1742280079941,25.3262198,124.38,124.34,8.0419]
[1742280080151,25.3262198,124.38,124.33,18.64964886]
[1742280080152,25.3262198,124.38,124.33,53.51456866]
[1742280080611,0.03,124.38,124.35,18.64964886]
[1742280081028,0.03,124.38,124.35,43.94586866]
[1742280081444,0.03,124.38,124.35,51.98706866]
[1742280081733,0.03,124.38,124.36,7.08]
[1742280082042,0.03,124.38,124.37,18.64964886]
[1742280084511,0.03,124.38,124.37,51.98636866]
[1742280084711,81.863,124.46,124.37,223.71223474]
[1742280084712,0.063,124.46,124.37,223.71223474]
[1742280084938,0.063,124.46,124.39,19.21829514]
[1742280085234,0.063,124.46,124.45,25.2962198]
[1742280085440,0.063,124.46,124.45,51.04586866]
[1742280085620,0.063,124.46,124.45,59.08116866]
[1742280088347,0.063,124.46,124.45,33.78494886]
[1742280088553,0.063,124.46,124.45,59.08116866]
[1742280090255,0.063,124.46,124.45,33.78494886]
[1742280090624,0.063,124.46,124.45,59.08116866]
[1742280092949,0.063,124.46,124.45,33.78494886]
[1742280093256,0.063,124.46,124.45,25.74964886]
[1742280093619,0.063,124.46,124.45,33.78494886]
[1742280093822,0.063,124.46,124.45,18.64964886]
[1742280094631,25.3592198,124.46,124.45,18.64964886]
[1742280094830,0.063,124.46,124.45,18.64964886]
[1742280099174,0.063,124.46,124.45,26.68494886]
[1742280099360,0.063,124.46,124.45,18.64964886]
[1742280099768,0.063,124.46,124.45,26.68494886]
[1742280100174,0.063,124.46,124.45,18.64964886]
[1742280101965,0.063,124.46,124.45,51.98116866]
[1742280102772,0.063,124.46,124.45,59.88996866]
[1742280103275,0.03,124.47,124.46,18.64964886]
[1742280103459,0.03,124.47,124.46,51.02586866]
[1742280103979,0.03,124.47,124.46,189.12586866]
[1742280104169,0.03,124.49,124.48,38.64964886]
[1742280104487,0.03,124.49,124.48,210.07926866]
[1742280104685,0.03,124.51,124.49,18.64964886]
[1742280104856,0.03,124.51,124.5,82.38648846]
[1742280105870,0.03,124.51,124.5,57.09026866]
[1742280106377,0.03,124.51,124.5,377.12236866]
[1742280106996,0.03,124.51,124.5,402.41858846]
[1742280107352,0.03,124.51,124.5,377.12236866]
[1742280109658,0.03,124.51,124.5,515.22236866]
[1742280110460,0.03,124.51,124.5,203.22236866]
[1742280111580,0.03,124.54,124.51,18.64964886]
[1742280111772,0.03,124.54,124.53,25.2962198]
[1742280111972,0.03,124.54,124.51,18.64964886]
[1742280112163,0.03,124.54,124.51,43.94586866]
[1742280112682,0.03,124.54,124.51,18.64964886]
[1742280112884,0.03,124.54,124.51,43.94586866]
[1742280113088,0.03,124.54,124.51,51.97696866]
[1742280113483,0.03,124.54,124.51,59.05696866]
[1742280113787,25.3262198,124.56,124.54,18.64964886]
[1742280113788,0.03,124.56,124.54,18.64964886]
[1742280113982,0.03,124.56,124.55,51.02586866]
[1742280114183,0.03,124.56,124.55,25.72964886]
[1742280114391,0.03,124.56,124.55,51.02586866]
[1742280114697,0.03,124.56,124.55,59.05476866]
[1742280115188,0.03,124.56,124.55,33.75854886]
[1742280115776,0.03,124.56,124.55,59.05476866]
[1742280117978,0.03,124.57,124.56,18.64964886]
[1742280118174,0.03,124.57,124.56,43.94586866]
[1742280118970,0.03,124.57,124.56,51.97406866]
[1742280120887,0.03,124.57,124.56,26.67784886]
[1742280121084,0.03,124.57,124.56,51.97406866]
[1742280122390,0.03,124.57,124.56,26.67784886]
[1742280124473,0.03,124.57,124.56,18.64964886]
[1742280124675,25.3262198,124.57,124.54,8.0293]
[1742280124887,25.2962198,124.56,124.55,18.64964886]
[1742280125494,25.2962198,124.56,124.52,26.68044886]
[1742280125677,25.2962198,124.55,124.52,26.68044886]
[1742280126178,1.6786,124.57,124.52,26.68044886]
[1742280126179,25.2962198,124.56,124.52,26.68044886]
[1742280126565,25.2962198,124.56,124.49,20.1448]
[1742280126566,25.2962198,124.53,124.49,20.1448]
[1742280126770,25.2962198,124.53,124.5,26.68144886]
[1742280127377,32.4762198,124.56,124.5,26.68144886]
[1742280127594,25.2962198,124.53,124.5,26.68144886]
[1742280128180,25.2962198,124.54,124.5,26.68144886]
[1742280128375,1.6786,124.57,124.52,18.64964886]
[1742280128582,46.9748198,124.57,124.53,18.64964886]
[1742280128889,46.9748198,124.57,124.55,18.64964886]
[1742280129468,45.3262198,124.57,124.55,18.64964886]
[1742280129670,20.03,124.57,124.55,18.64964886]
[1742280130495,0.03,124.57,124.55,18.64964886]
[1742280130804,0.03,124.57,124.56,26.67784886]
[1742280135612,25.3262198,124.57,124.56,18.64964886]
[1742280135911,25.3262198,124.57,124.52,20.0764]
[1742280135912,57.8024396,124.57,124.51,8.0314]
[1742280136106,25.2962198,124.53,124.51,8.0314]
[1742280136505,25.2962198,124.54,124.5,28.1122]
[1742280136679,25.2962198,124.54,124.51,18.64964886]
[1742280137202,25.2962198,124.53,124.51,18.64964886]
[1742280137408,25.2962198,124.52,124.5,18.64964886]
[1742280138594,25.2962198,124.52,124.5,8.0319]
[1742280139410,6.3955,124.55,124.5,8.0319]
[1742280139411,25.2962198,124.53,124.5,8.0319]
[1742280140004,25.2962198,124.54,124.5,26.68154886]
[1742280140209,25.2962198,124.54,124.49,0.063]
[1742280140210,50.5924396,124.51,124.49,0.063]
[1742280140410,50.5924396,124.5,124.49,0.063]
[1742280140609,25.2962198,124.5,124.49,0.063]
[1742280141386,50.5924396,124.5,124.49,0.063]
[1742280142088,50.5924396,124.5,124.43,18.71264886]
[1742280142089,20.0,124.47,124.43,0.063]
[1742280142397,25.2962198,124.46,124.43,0.063]
[1742280142916,52.5962198,124.47,124.43,0.063]
[1742280144113,25.2962198,124.46,124.43,0.063]
[1742280144331,25.2962198,124.44,124.43,0.063]
[1742280144820,25.2962198,124.45,124.43,0.063]
[1742280145205,25.2962198,124.44,124.43,0.063]
[1742280146615,25.2962198,124.45,124.43,0.063]
[1742280146799,25.2962198,124.46,124.43,0.063]
[1742280148912,45.2962198,124.47,124.43,18.71264886]
[1742280149119,25.2962198,124.46,124.43,18.71264886]
[1742280150613,25.2962198,124.45,124.43,18.71264886]
[1742280151124,25.2962198,124.45,124.43,0.063]
[1742280151423,25.2962198,124.44,124.43,0.063]
[1742280159435,50.5924396,124.44,124.43,0.063]
[1742280159624,50.5924396,124.44,124.38,0.063]
[1742280159625,20.0,124.41,124.38,0.063]
[1742280159828,25.2962198,124.39,124.38,0.063]
[1742280164732,27.24,124.41,124.38,0.063]
[1742280164918,25.2962198,124.39,124.38,0.063]
[1742280171618,20.0,124.4,124.38,0.063]
[1742280171817,45.2962198,124.4,124.38,0.063]
[1742280172235,25.2962198,124.39,124.38,0.063]
[1742280172827,20.0,124.4,124.38,0.063]
[1742280173027,25.2962198,124.41,124.38,18.71264886]
[1742280173241,25.2962198,124.41,124.39,8.0392]
[1742280173415,25.2962198,124.4,124.39,26.68884886]
[1742280173817,25.2962198,124.4,124.39,18.64964886]
[1742280174140,7.2,124.43,124.38,26.75214886]
[1742280174345,25.2962198,124.39,124.38,8.1025]
[1742280174573,7.2,124.43,124.38,8.1025]
[1742280174720,25.2962198,124.4,124.38,8.1025]
[1742280175045,25.2962198,124.39,124.38,8.1025]
[1742280175422,25.2962198,124.39,124.38,0.063]
[1742280178648,7.2,124.43,124.38,0.063]
[1742280178847,25.2962198,124.39,124.38,0.063]
[1742280179418,32.4762198,124.39,124.38,0.063]
[1742280179823,57.7724396,124.39,124.38,0.063]
[1742280180340,32.4762198,124.39,124.38,0.063]
[1742280180647,59.3867396,124.39,124.38,0.063]
[1742280180823,20.0,124.37,124.36,0.063]
[1742280181025,45.2962198,124.37,124.36,0.063]
[1742280183039,51.7600198,124.37,124.36,0.063]
[1742280185131,45.2962198,124.37,124.36,0.063]
[1742280185859,45.2962198,124.37,124.31,0.063]
[1742280186039,25.2962198,124.32,124.31,0.063]
[1742280186360,32.4762198,124.32,124.31,0.063]
[1742280187758,25.2962198,124.33,124.31,0.063]
[1742280188634,32.4762198,124.34,124.31,0.063]
[1742280188845,32.4762198,124.34,124.31,18.71264886]
[1742280189664,7.18,124.34,124.31,18.71264886]
[1742280189967,32.4762198,124.34,124.31,18.71264886]
[1742280190335,25.2962198,124.32,124.31,0.063]
[1742280191235,20.0,124.29,124.26,8.1104]
[1742280191441,50.5924396,124.32,124.26,0.063]
[1742280191442,25.2962198,124.27,124.26,0.063]
[1742280191642,32.5362198,124.28,124.26,0.063]
[1742280194457,25.2962198,124.27,124.26,0.063]
[1742280195762,25.2962198,124.28,124.26,0.063]
[1742280196154,7.28,124.29,124.26,0.063]
[1742280196355,32.5762198,124.29,124.26,0.063]
[1742280196546,7.28,124.29,124.26,0.063]
[1742280196742,32.5762198,124.29,124.26,0.063]
[1742280197762,25.2962198,124.29,124.26,0.063]
[1742280197976,7.28,124.31,124.26,0.063]
[1742280198141,25.2962198,124.3,124.26,18.71264886]
[1742280199173,25.2962198,124.29,124.26,18.71264886]
[1742280199661,25.2962198,124.29,124.26,0.063]
[1742280199866,25.2962198,124.29,124.26,18.71264886]
[1742280200044,25.2962198,124.29,124.26,26.76014886]
[1742280200246,25.2962198,124.3,124.26,28.39284886]
[1742280200761,25.2962198,124.29,124.26,28.39284886]
[1742280208476,25.2962198,124.31,124.26,53.68906866]
[1742280208782,7.22,124.33,124.28,18.64964886]
[1742280208950,4.01822432,124.35,124.28,18.64964886]
[1742280209157,88.37716312,124.37,124.29,43.94586866]
[1742280209469,25.2962198,124.34,124.29,43.94586866]
[1742280210574,7.24,124.37,124.3,8.045]
[1742280210771,25.2962198,124.34,124.3,8.045]
[1742280211373,25.2962198,124.33,124.3,8.045]
[1742280211671,25.2962198,124.34,124.3,8.045]
[1742280212875,25.2962198,124.34,124.3,28.1576]
[1742280213071,25.2962198,124.34,124.32,18.64964886]
[1742280213454,25.2962198,124.36,124.32,18.64964886]
[1742280213774,25.3262198,124.38,124.34,18.64964886]
[1742280214172,25.3262198,124.38,124.36,18.64964886]
[1742280214173,0.03,124.38,124.36,18.64964886]
[1742280214681,0.03,124.38,124.37,8.0405]
[1742280214879,0.03,124.38,124.36,26.69044886]
[1742280215061,25.3262198,124.38,124.36,18.64964886]
[1742280215267,25.2962198,124.37,124.36,18.64964886]
[1742280215577,0.03,124.38,124.36,18.64964886]
[1742280215754,25.2962198,124.37,124.36,18.64964886]
[1742280217060,25.3262198,124.38,124.36,18.64964886]
[1742280217581,0.03,124.38,124.36,18.64964886]
[1742280217763,25.2962198,124.37,124.34,8.0421]
[1742280217958,25.2962198,124.37,124.34,18.64964886]
[1742280218358,0.03,124.38,124.34,43.94586866]
[1742280218983,25.3262198,124.38,124.34,26.69194886]
[1742280219387,0.03,124.38,124.34,51.98816866]
[1742280220284,25.3262198,124.38,124.34,26.69194886]
[1742280220489,25.3262198,124.38,124.34,18.64964886]
[1742280220983,25.2962198,124.35,124.34,18.64964886]
[1742280221158,25.3262198,124.38,124.34,18.64964886]
[1742280221159,25.2962198,124.36,124.34,18.64964886]
[1742280221359,0.03,124.38,124.34,18.64964886]
[1742280221588,25.2962198,124.36,124.34,18.64964886]
[1742280223593,25.2962198,124.35,124.34,18.64964886]
[1742280223797,25.2962198,124.35,124.31,18.64964886]
[1742280223977,25.2962198,124.33,124.31,18.64964886]
[1742280225492,25.2962198,124.32,124.29,18.64964886]
[1742280225796,25.2962198,124.31,124.29,18.64964886]
[1742280225989,25.2962198,124.31,124.28,18.64964886]
[1742280226176,8.5409,124.37,124.28,18.64964886]
[1742280226177,25.2962198,124.29,124.28,18.64964886]
[1742280226593,25.2962198,124.29,124.26,0.063]
[1742280226903,25.2962198,124.28,124.26,0.063]
[1742280227800,7.36,124.31,124.26,0.063]
[1742280228174,25.2962198,124.29,124.26,0.063]
[1742280229094,25.2962198,124.3,124.26,0.063]
[1742280231702,25.2962198,124.31,124.28,8.0463]
[1742280236902,25.2962198,124.31,124.26,20.1807]
[1742280237105,25.2962198,124.3,124.27,18.64964886]
[1742280237285,25.2962198,124.31,124.27,18.64964886]
[1742280237487,25.2962198,124.32,124.27,18.64964886]
[1742280237813,25.2962198,124.32,124.28,7.8724]
[1742280237995,25.2962198,124.32,124.29,18.64964886]
[1742280240006,25.2962198,124.32,124.3,8.045]
[1742280240309,25.2962198,124.31,124.29,26.69504886]
[1742280243403,25.2962198,124.3,124.29,18.64964886]
[1742280244288,32.6162198,124.3,124.26,0.063]
[1742280244506,25.2962198,124.28,124.26,26.76024886]
[1742280244909,25.2962198,124.29,124.26,26.76024886]
[1742280248312,7.32,124.3,124.26,46.87934886]
[1742280248493,32.6162198,124.3,124.26,46.87934886]
[1742280248694,25.2962198,124.29,124.26,46.87934886]
[1742280249315,20.0,124.34,124.26,72.17556866]
[1742280249507,116.75675542,124.37,124.28,18.64964886]
[1742280249508,20.0,124.3,124.28,18.64964886]
[1742280249701,20.0,124.3,124.27,18.64964886]
[1742280250021,45.2962198,124.3,124.27,18.64964886]
[1742280250197,25.2962198,124.29,124.27,18.64964886]
[1742280250516,25.2962198,124.28,124.27,18.64964886]
[1742280250720,45.2962198,124.29,124.26,26.76024886]
[1742280250907,25.2962198,124.28,124.26,26.76024886]
[1742280251796,45.2962198,124.29,124.26,26.76024886]
[1742280252206,25.2962198,124.27,124.26,0.063]
[1742280252421,25.2962198,124.27,124.26,26.76024886]
[1742280252601,27.3,124.29,124.26,26.76024886]
[1742280252805,25.2962198,124.27,124.26,26.76024886]
[1742280253016,25.2962198,124.28,124.26,26.76024886]
[1742280254198,52.5962198,124.29,124.26,46.87934886]
[1742280255003,7.3,124.29,124.26,46.87934886]
[1742280255317,0.063,124.31,124.28,18.64964886]
[1742280255523,0.063,124.31,124.29,43.94586866]
[1742280255895,0.063,124.31,124.28,43.94586866]
[1742280256725,0.063,124.31,124.29,8.0456]
[1742280257019,7.28,124.35,124.3,18.64964886]
[1742280257322,25.2962198,124.33,124.3,18.64964886]
[1742280258521,25.2962198,124.34,124.3,18.64964886]
[1742280258910,25.2962198,124.34,124.32,18.64964886]
[1742280259925,45.2962198,124.33,124.32,18.64964886]
[1742280260913,45.2962198,124.33,124.28,18.64964886]
[1742280261217,25.2962198,124.3,124.28,26.69574886]
[1742280261416,25.2962198,124.29,124.28,18.64964886]
[1742280261623,25.2962198,124.29,124.28,18.67964886]
[1742280261817,25.2962198,124.29,124.28,0.03]
[1742280262129,25.2962198,124.29,124.28,18.67964886]
[1742280262706,25.2962198,124.29,124.28,0.03]
[1742280267139,25.2962198,124.29,124.28,18.67964886]
[1742280268236,25.2962198,124.29,124.28,0.03]
[1742280271722,27.3350198,124.29,124.28,0.03]
[1742280272036,20.0,124.27,124.26,0.063]
[1742280272341,64.79333659,124.27,124.26,0.063]
[1742280272524,33.0362198,124.27,124.26,0.063]
[1742280272921,32.5362198,124.27,124.26,0.063]
[1742280275437,7.24,124.27,124.26,0.063]
[1742280275627,32.5362198,124.27,124.26,0.063]
[1742280279144,23.4499793,124.27,124.26,0.063]
[1742280279444,43.4499793,124.27,124.26,0.063]
[1742280279824,23.4499793,124.27,124.26,0.063]
[1742280280128,72.5799172,124.27,124.24,0.063]